[Event "Test Tournament"]
[Site "Emanuel Lasker Arena"]
[Date "2024.04.09"]
[Round "2"]
[White "Klaus Junge"]
[Black "Chartwell"]
[Result "1-0"]
[WhiteElo "1620"]
[BlackElo "2149"]
[Annotator "RC"]
[PlyCount "87"]
[EventDate "2024.04.09"]
[EventType "swiss (blitz)"]
[TimeControl "60"]

1. e4 {[%emt 0:00:01]} e5 {[%emt 0:00:01]} 2. Nf3 {[%emt 0:00:01]} Nc6 {[%emt 0:00:01]} 3. Bb5 {[%emt 0:00:01]} a6 {[%emt 0:00:01]} 4. Ba4 {[%emt 0:00:01]} Nf6 {[%emt 0:00:01]} 5. O-O {[%emt 0:00:01]} Be7 {[%emt 0:00:01]} 6. Re1 {[%emt 0:00:01]} b5 {[%emt 0:00:01]} 7. Bb3 {[%emt 0:00:01]} O-O {[%emt 0:00:01]} 8. c3 {[%emt 0:00:01]} d6 {[%emt 0:00:01]} 9. h3 {[%emt 0:00:01]} Na5 {[%emt 0:00:01]} 10. Bc2 {[%emt 0:00:01]} c5 {[%emt 0:00:01]} 11. d4 {[%emt 0:00:01]} Qc7 {[%emt 0:00:01]} 12. d5 {[%emt 0:00:01]} Bd7 {[%emt 0:00:01]} 13. b3 {[%emt 0:00:01]} Nb7 {[%emt 0:00:01]} 14. c4 {[%emt 0:00:01]} Bd8 {[%emt 0:00:04]} 15. Nbd2 {[%emt 0:00:01]} Na5 {[%emt 0:00:03]} 16. Qe2 {[%emt 0:00:02]} Re8 {[%emt 0:00:05]} 17. Nf1 {[%emt 0:00:03]} b4 {[%emt 0:00:03]} 18. Ng5 {[%emt 0:00:04]} g6 {[%emt 0:00:03]} 19. Qf3 {[%emt 0:00:03]} Be7 {[%emt 0:00:03]} 20. g4 {[%emt 0:00:03]} Rf8 {[%emt 0:00:02]} 21. a4 {[%emt 0:00:03]} h6 {[%emt 0:00:02]} 22. Ne6 {[%emt 0:00:02]} fxe6 {[%emt 0:00:01]} 23. Bxh6 {[%emt 0:00:01]} Nxd5 {[%emt 0:00:02]} 24. Qg3 {[%emt 0:00:01]} Nf4 {[%emt 0:00:01]} 25. h4 {[%emt 0:00:02]} Kh7 {[%emt 0:00:02]} 26. g5 {[%emt 0:00:02]} Rf7 {[%emt 0:00:02]} 27. h5 {[%emt 0:00:02]} Rh8 {[%emt 0:00:02]} 28. Qh4 {[%emt 0:00:02]} Bc6 {[%emt 0:00:01]} 29. hxg6+ {[%emt 0:00:01]} Kxg6 {[%emt 0:00:01]} 30. Ne3 {[%emt 0:00:02]} Nxb3 {[%emt 0:00:02]} 31. Bxb3 {[%emt 0:00:01]} Bxe4 {[%emt 0:00:01]} 32. Ng4 {[%emt 0:00:02]} Qc6 {[%emt 0:00:01]} 33. a5 {[%emt 0:00:01]} Bd3 {[%emt 0:00:01]} 34. Qg3 {[%emt 0:00:01]} Rf5 {[%emt 0:00:01]} 35. Nf6 {[%emt 0:00:01]} Bxf6 {[%emt 0:00:01]} 36. gxf6+ {[%emt 0:00:01]} Kxh6 {[%emt 0:00:01]} 37. Qg7+ {[%emt 0:00:01]} Kh5 {[%emt 0:00:01]} 38. Bd1+ {[%emt 0:00:00]} Be2 {[%emt 0:00:00]} 39. Rxe2 {[%emt 0:00:00]} Nxe2+ {[%emt 0:00:01]} 40. Bxe2+ {[%emt 0:00:00]} Rf3 {[%emt 0:00:00]} 41. Qxh8+ {[%emt 0:00:01]} Kg5 {[%emt 0:00:00]} 42. Qg7+ {[%emt 0:00:01]} Kh4 {[%emt 0:00:01]} 43. Ra3 {[%emt 0:00:01]} Rxa3 {[%emt 0:00:00]} 44. Qg4# {[%emt 0:00:00] (Lag: Av=0.08s, max=0.7s)} 1-0

[Event "Test Tournament"]
[Site "Emanuel Lasker Arena"]
[Date "2024.04.09"]
[Round "2"]
[White "Knightess"]
[Black "Mrs Florrick"]
[Result "0-1"]
[WhiteElo "1620"]
[BlackElo "1780"]
[Annotator "NA RC"]
[PlyCount "64"]
[EventDate "2024.04.09"]
[EventType "swiss (blitz)"]
[TimeControl "60"]

1. d4 {[%emt 0:00:02]} Nf6 {[%emt 0:00:01]} 2. Nc3 {[%emt 0:00:01]} d5 {[%emt 0:00:01]} 3. Bg5 {[%emt 0:00:01]} e6 {[%emt 0:00:01]} 4. e4 {[%emt 0:00:01]} dxe4 {[%emt 0:00:01]} 5. Nxe4 {[%emt 0:00:01]} Be7 {[%emt 0:00:01]} 6. Bxf6 {[%emt 0:00:01]} gxf6 {[%emt 0:00:01]} 7. Bb5+ {[%emt 0:00:01]} c6 {[%emt 0:00:01]} 8. Be2 {[%emt 0:00:04]} Qd5 {[%emt 0:00:04]} 9. Bf3 {[%emt 0:00:05]} f5 {[%emt 0:00:02]} 10. c4 {[%emt 0:00:10]} Qxc4 {[%emt 0:00:02]} 11. Be2 {[%emt 0:00:03]} Qd5 {[%emt 0:00:04]} 12. Nc5 {[%emt 0:00:04]} Qxg2 {[%emt 0:00:01]} 13. Bf3 {[%emt 0:00:02]} Nd7 {[%emt 0:00:09]} 14. Bxg2 {[%emt 0:00:01]} Nxc5 {[%emt 0:00:01]} 15. dxc5 {[%emt 0:00:01]} Bxc5 {[%emt 0:00:01]} 16. f4 {[%emt 0:00:02]} Rg8 {[%emt 0:00:02]} 17. Bf3 {[%emt 0:00:02]} Bxg1 {[%emt 0:00:01]} 18. Qd6 {[%emt 0:00:03]} Be3 {[%emt 0:00:03]} 19. Rd1 {[%emt 0:00:01]} Bb6 {[%emt 0:00:02]} 20. Bxc6+ {[%emt 0:00:01]} bxc6 {[%emt 0:00:01]} 21. Qxc6+ {[%emt 0:00:01]} Ke7 {[%emt 0:00:01]} 22. Qxa8 {[%emt 0:00:01]} Be3 {[%emt 0:00:02]} 23. Qc6 {[%emt 0:00:01]} Bxf4 {[%emt 0:00:01]} 24. Rd4 {[%emt 0:00:02]} Be3 {[%emt 0:00:02]} 25. Qc7+ {[%emt 0:00:02]} Kf6 {[%emt 0:00:01]} 26. Re4 {[%emt 0:00:02]} fxe4 {[%emt 0:00:01]} 27. Qc2 {[%emt 0:00:01]} a5 {[%emt 0:00:01]} 28. Qc3+ {[%emt 0:00:01]} Ke7 {[%emt 0:00:01]} 29. Qxe3 {[%emt 0:00:00]} Rg2 {[%emt 0:00:01]} 30. Qd4 {[%emt 0:00:01]} Bd7 {[%emt 0:00:01]} 31. Rf1 {[%emt 0:00:01]} Rxh2 {[%emt 0:00:01]} 32. Rf2 {[%emt 0:00:01] .} Rxf2 {[%emt 0:00:01]} 0-1

[Event "Test Tournament"]
[Site "Emanuel Lasker Arena"]
[Date "2024.04.09"]
[Round "2"]
[White "Melancholia"]
[Black "Sunset"]
[Result "0-1"]
[WhiteElo "1620"]
[BlackElo "1878"]
[Annotator "NA RC"]
[PlyCount "36"]
[EventDate "2024.04.09"]
[EventType "swiss (blitz)"]
[TimeControl "60"]

1. d4 {[%emt 0:00:01]} Nf6 {[%emt 0:00:01]} 2. c4 {[%emt 0:00:01]} e6 {[%emt 0:00:01]} 3. Nf3 {[%emt 0:00:01]} d5 {[%emt 0:00:01]} 4. Nc3 {[%emt 0:00:01]} Be7 {[%emt 0:00:01]} 5. Bg5 {[%emt 0:00:01]} h6 {[%emt 0:00:01]} 6. Qa4+ {[%emt 0:00:01]} Bd7 {[%emt 0:00:01]} 7. Qb3 {[%emt 0:00:01]} hxg5 {[%emt 0:00:01]} 8. Qxb7 {[%emt 0:00:01]} Nc6 {[%emt 0:00:04]} 9. O-O-O {[%emt 0:00:01]} Na5 {[%emt 0:00:04]} 10. h4 {[%emt 0:00:02]} Nxb7 {[%emt 0:00:02]} 11. Nxg5 {[%emt 0:00:01]} Ng4 {[%emt 0:00:01]} 12. f4 {[%emt 0:00:08]} Nf2 {[%emt 0:00:03]} 13. cxd5 {[%emt 0:00:04]} Nxd1 {[%emt 0:00:01]} 14. Kxd1 {[%emt 0:00:01]} Bxg5 {[%emt 0:00:01]} 15. hxg5 {[%emt 0:00:01]} Rxh1 {[%emt 0:00:01]} 16. dxe6 {[%emt 0:00:03]} Rxf1+ {[%emt 0:00:01]} 17. Kc2 {[%emt 0:00:01]} Bxe6 {[%emt 0:00:01]} 18. d5 {[%emt 0:00:03]} Bd7 {[%emt 0:00:01] Melancholia resigns (Lag: Av=0.06s, max=0.2s)} 0-1

[Event "Test Tournament"]
[Site "Emanuel Lasker Arena"]
[Date "2024.04.09"]
[Round "2"]
[White "Melancholia"]
[Black "AlphaHero"]
[Result "0-1"]
[WhiteElo "1620"]
[BlackElo "2021"]
[Annotator "RC"]
[PlyCount "44"]
[EventDate "2024.04.09"]
[EventType "swiss (blitz)"]
[TimeControl "60"]

1. e4 {[%emt 0:00:01]} e5 {[%emt 0:00:01]} 2. Nf3 {[%emt 0:00:02]} Nc6 {[%emt 0:00:01]} 3. Bb5 {[%emt 0:00:01]} Nf6 {[%emt 0:00:01]} 4. O-O {[%emt 0:00:01]} Nxe4 {[%emt 0:00:01]} 5. d4 {[%emt 0:00:01]} Be7 {[%emt 0:00:01]} 6. Qe2 {[%emt 0:00:01]} Nd6 {[%emt 0:00:01]} 7. Nxe5 {[%emt 0:00:12]} Nxd4 {[%emt 0:00:00]} 8. Qg4 {[%emt 0:00:01]} N4xb5 {[%emt 0:00:01]} 9. Qxg7 {[%emt 0:00:01]} Bf6 {[%emt 0:00:01]} 10. Qg3 {[%emt 0:00:03]} Nd4 {[%emt 0:00:05]} 11. Nc3 {[%emt 0:00:03]} Nxc2 {[%emt 0:00:01]} 12. Ng4 {[%emt 0:00:03]} h5 {[%emt 0:00:01]} 13. Nxf6+ {[%emt 0:00:01]} Qxf6 {[%emt 0:00:01]} 14. Nd5 {[%emt 0:00:03]} Qd4 {[%emt 0:00:04]} 15. Nxc7+ {[%emt 0:00:01]} Kf8 {[%emt 0:00:01]} 16. Nxa8 {[%emt 0:00:01]} Ne4 {[%emt 0:00:04]} 17. Qf3 {[%emt 0:00:02]} d5 {[%emt 0:00:01]} 18. Nc7 {[%emt 0:00:03]} Bg4 {[%emt 0:00:01]} 19. Bf4 {[%emt 0:00:02]} Bxf3 {[%emt 0:00:01]} 20. gxf3 {[%emt 0:00:01]} Rg8+ {[%emt 0:00:03]} 21. Kh1 {[%emt 0:00:01]} Nxa1 {[%emt 0:00:01]} 22. Rxa1 {[%emt 0:00:01]} Nxf2# {[%emt 0:00:02] (Lag: Av=0.07s, max=0.5s)} 0-1

[Event "Test Tournament"]
[Site "Emanuel Lasker Arena"]
[Date "2024.04.09"]
[Round "2"]
[White "Roberta Draper"]
[Black "ArrowPlay"]
[Result "1-0"]
[WhiteElo "1620"]
[BlackElo "2027"]
[Annotator "RC"]
[PlyCount "65"]
[EventDate "2024.04.09"]
[EventType "swiss (blitz)"]
[TimeControl "60"]

1. e4 {[%emt 0:00:01]} c6 {[%emt 0:00:01]} 2. d4 {[%emt 0:00:01]} d5 {[%emt 0:00:01]} 3. e5 {[%emt 0:00:01]} Bf5 {[%emt 0:00:01]} 4. g4 {[%emt 0:00:01]} Be4 {[%emt 0:00:01]} 5. f3 {[%emt 0:00:01]} Bg6 {[%emt 0:00:01]} 6. e6 {[%emt 0:00:01]} Qd6 {[%emt 0:00:05]} 7. exf7+ {[%emt 0:00:01]} Bxf7 {[%emt 0:00:01]} 8. f4 {[%emt 0:00:02]} Nf6 {[%emt 0:00:01]} 9. Qe2 {[%emt 0:00:02]} Nbd7 {[%emt 0:00:09]} 10. g5 {[%emt 0:00:04]} Nh5 {[%emt 0:00:02]} 11. Bh3 {[%emt 0:00:02]} Nxf4 {[%emt 0:00:01]} 12. Qe3 {[%emt 0:00:01]} e5 {[%emt 0:00:01]} 13. Bxd7+ {[%emt 0:00:01]} Kxd7 {[%emt 0:00:01]} 14. Qb3 {[%emt 0:00:01]} Qb4+ {[%emt 0:00:07]} 15. Nc3 {[%emt 0:00:08]} Qxb3 {[%emt 0:00:01]} 16. axb3 {[%emt 0:00:01]} Bb4 {[%emt 0:00:03]} 17. Ra4 {[%emt 0:00:01]} a5 {[%emt 0:00:03]} 18. dxe5 {[%emt 0:00:01]} b5 {[%emt 0:00:02]} 19. g6 {[%emt 0:00:03]} Bxg6 {[%emt 0:00:01]} 20. Ra1 {[%emt 0:00:03]} Ne6 {[%emt 0:00:02]} 21. Nf3 {[%emt 0:00:03]} Bxc2 {[%emt 0:00:01]} 22. Be3 {[%emt 0:00:02]} Bxb3 {[%emt 0:00:01]} 23. h4 {[%emt 0:00:02]} a4 {[%emt 0:00:02]} 24. Kd2 {[%emt 0:00:01]} Rhf8 {[%emt 0:00:02]} 25. Ng5 {[%emt 0:00:01]} d4 {[%emt 0:00:02]} 26. Nxh7 {[%emt 0:00:01]} dxe3+ {[%emt 0:00:02]} 27. Kxe3 {[%emt 0:00:01]} Bc5+ {[%emt 0:00:02]} 28. Kd3 {[%emt 0:00:01]} Rf3+ {[%emt 0:00:02]} 29. Kd2 {[%emt 0:00:01]} Be3+ {[%emt 0:00:01]} 30. Ke2 {[%emt 0:00:01]} Nd4+ {[%emt 0:00:00]} 31. Ke1 {[%emt 0:00:01]} b4 {[%emt 0:00:02]} 32. Ne4 {[%emt 0:00:01]} Nc2+ {[%emt 0:00:02] '} 33. Ke2 {[%emt 0:00:01] (Lag: Av=0.06s, max=0.3s)} 1-0

[Event "Test Tournament"]
[Site "Emanuel Lasker Arena"]
[Date "2024.04.09"]
[Round "2"]
[White "Sauerbruch"]
[Black "Beaujolais"]
[Result "0-1"]
[WhiteElo "1620"]
[BlackElo "2200"]
[Annotator "RC"]
[PlyCount "94"]
[EventDate "2024.04.09"]
[EventType "swiss (blitz)"]
[TimeControl "60"]

1. e4 {[%emt 0:00:01]} Nf6 {[%emt 0:00:01]} 2. e5 {[%emt 0:00:01]} Nd5 {[%emt 0:00:01]} 3. d4 {[%emt 0:00:01]} d6 {[%emt 0:00:01]} 4. c4 {[%emt 0:00:01]} Nb6 {[%emt 0:00:01]} 5. f4 {[%emt 0:00:00]} Bf5 {[%emt 0:00:01]} 6. Nc3 {[%emt 0:00:01]} dxe5 {[%emt 0:00:01]} 7. fxe5 {[%emt 0:00:01]} e6 {[%emt 0:00:01]} 8. Be3 {[%emt 0:00:01]} Nc6 {[%emt 0:00:01]} 9. Nf3 {[%emt 0:00:01]} Bg4 {[%emt 0:00:01]} 10. Qd2 {[%emt 0:00:01]} Bb4 {[%emt 0:00:01]} 11. a3 {[%emt 0:00:01]} Bxc3 {[%emt 0:00:01]} 12. Qxc3 {[%emt 0:00:01]} Bxf3 {[%emt 0:00:06]} 13. gxf3 {[%emt 0:00:01]} Qh4+ {[%emt 0:00:04]} 14. Bf2 {[%emt 0:00:04]} Qf4 {[%emt 0:00:03]} 15. h4 {[%emt 0:00:04]} O-O-O {[%emt 0:00:03]} 16. Be3 {[%emt 0:00:09]} Qxf3 {[%emt 0:00:01]} 17. Rh3 {[%emt 0:00:04]} Qg4 {[%emt 0:00:01]} 18. b4 {[%emt 0:00:02]} Nxd4 {[%emt 0:00:01]} 19. c5 {[%emt 0:00:02]} Nf3+ {[%emt 0:00:00]} 20. Rxf3 {[%emt 0:00:01]} Nd5 {[%emt 0:00:01]} 21. c6 {[%emt 0:00:03]} Nxc3 {[%emt 0:00:01]} 22. cxb7+ {[%emt 0:00:01]} Kxb7 {[%emt 0:00:01]} 23. Kf2 {[%emt 0:00:02]} Rd1 {[%emt 0:00:02]} 24. Rc1 {[%emt 0:00:01]} Qxh4+ {[%emt 0:00:02]} 25. Kg1 {[%emt 0:00:01]} Ne2+ {[%emt 0:00:02]} 26. Kg2 {[%emt 0:00:01]} Nxc1 {[%emt 0:00:01]} 27. Bxc1 {[%emt 0:00:01]} Rxc1 {[%emt 0:00:00]} 28. Rh3 {[%emt 0:00:01]} Qe4+ {[%emt 0:00:02]} 29. Rf3 {[%emt 0:00:01]} Rxf1 {[%emt 0:00:02]} 30. Kxf1 {[%emt 0:00:01]} Qxf3+ {[%emt 0:00:01]} 31. Ke1 {[%emt 0:00:01]} Qe3+ {[%emt 0:00:01]} 32. Kf1 {[%emt 0:00:01]} Qd3+ {[%emt 0:00:01]} 33. Kf2 {[%emt 0:00:01]} Qd2+ {[%emt 0:00:01]} 34. Kf3 {[%emt 0:00:01]} Qd3+ {[%emt 0:00:01]} 35. Kg4 {[%emt 0:00:01]} Qe2+ {[%emt 0:00:01]} 36. Kf4 {[%emt 0:00:01]} Qd2+ {[%emt 0:00:01]} 37. Ke4 {[%emt 0:00:01]} Qe2+ {[%emt 0:00:01]} 38. Kf4 {[%emt 0:00:01]} Qd2+ {[%emt 0:00:01]} 39. Kg3 {[%emt 0:00:00]} Qe1+ {[%emt 0:00:01]} 40. Kf3 {[%emt 0:00:01]} Qd1+ {[%emt 0:00:01]} 41. Ke3 {[%emt 0:00:01]} Qe1+ {[%emt 0:00:01]} 42. Kd4 {[%emt 0:00:00]} Rd8+ {[%emt 0:00:01]} 43. Kc4 {[%emt 0:00:00]} Qe2+ {[%emt 0:00:01]} 44. Kb3 {[%emt 0:00:00]} Qd1+ {[%emt 0:00:01]} 45. Kc4 {[%emt 0:00:00]} Qc1+ {[%emt 0:00:01]} 46. Kb5 {[%emt 0:00:00]} c6+ {[%emt 0:00:00]} 47. Ka5 {[%emt 0:00:01]} Qxa3# {[%emt 0:00:01] (Lag: Av=0.06s, max=0.4s)} 0-1

[Event "Test Tournament"]
[Site "Emanuel Lasker Arena"]
[Date "2024.04.09"]
[Round "2"]
[White "Sauerbruch"]
[Black "Churchill"]
[Result "1-0"]
[WhiteElo "1620"]
[BlackElo "1620"]
[Annotator "NA RC"]
[PlyCount "39"]
[EventDate "2024.04.09"]
[EventType "swiss (blitz)"]
[TimeControl "60"]

1. e4 {[%emt 0:00:01]} c6 {[%emt 0:00:01]} 2. d4 {[%emt 0:00:01]} d5 {[%emt 0:00:01]} 3. e5 {[%emt 0:00:01]} Bf5 {[%emt 0:00:02]} 4. g4 {[%emt 0:00:01]} Be4 {[%emt 0:00:01]} 5. f3 {[%emt 0:00:01]} Bg6 {[%emt 0:00:06]} 6. h4 {[%emt 0:00:01]} Qa5+ {[%emt 0:00:02]} 7. c3 {[%emt 0:00:04]} e6 {[%emt 0:00:01]} 8. h5 {[%emt 0:00:04]} Ba3 {[%emt 0:00:15]} 9. hxg6 {[%emt 0:00:01]} Be7 {[%emt 0:00:01]} 10. Qb3 {[%emt 0:00:01]} fxg6 {[%emt 0:00:01]} 11. Qxb7 {[%emt 0:00:01]} Nh6 {[%emt 0:00:03]} 12. Rxh6 {[%emt 0:00:01]} gxh6 {[%emt 0:00:01]} 13. Qxa8 {[%emt 0:00:01]} Bh4+ {[%emt 0:00:03]} 14. Kd1 {[%emt 0:00:01]} O-O {[%emt 0:00:02]} 15. Bxh6 {[%emt 0:00:01]} Qb6 {[%emt 0:00:02]} 16. Bxf8 {[%emt 0:00:01]} Qxb2 {[%emt 0:00:01]} 17. Bb4 {[%emt 0:00:07]} Qxa1 {[%emt 0:00:01]} 18. Qxb8+ {[%emt 0:00:03]} Bd8 {[%emt 0:00:01]} 19. Qxd8+ {[%emt 0:00:01]} Kg7 {[%emt 0:00:01]} 20. Qf8# {[%emt 0:00:02] (Lag: Av=0.09s, max=0.8s)} 1-0

[Event "Test Tournament"]
[Site "Emanuel Lasker Arena"]
[Date "2024.04.09"]
[Round "2"]
[White "Stachelrochade"]
[Black "Lord Grantham"]
[Result "0-1"]
[WhiteElo "1620"]
[BlackElo "1766"]
[Annotator "NA RC"]
[PlyCount "78"]
[EventDate "2024.04.09"]
[EventType "swiss (blitz)"]
[TimeControl "60"]

1. d4 {[%emt 0:00:01]} d5 {[%emt 0:00:01]} 2. c4 {[%emt 0:00:01]} e6 {[%emt 0:00:01]} 3. Nf3 {[%emt 0:00:01]} Nf6 {[%emt 0:00:01]} 4. g3 {[%emt 0:00:01]} Bb4+ {[%emt 0:00:01]} 5. Bd2 {[%emt 0:00:01]} Be7 {[%emt 0:00:01]} 6. Bg2 {[%emt 0:00:01]} O-O {[%emt 0:00:01]} 7. O-O {[%emt 0:00:01]} Nbd7 {[%emt 0:00:01]} 8. Qc2 {[%emt 0:00:01]} c5 {[%emt 0:00:01]} 9. dxc5 {[%emt 0:00:01]} Nxc5 {[%emt 0:00:01]} 10. cxd5 {[%emt 0:00:01]} Nxd5 {[%emt 0:00:01]} 11. Rd1 {[%emt 0:00:04]} Qb6 {[%emt 0:00:04]} 12. Bg5 {[%emt 0:00:04]} Nb4 {[%emt 0:00:04]} 13. Qc4 {[%emt 0:00:04]} Bd6 {[%emt 0:00:06]} 14. Rxd6 {[%emt 0:00:01]} Qxd6 {[%emt 0:00:01]} 15. Qxb4 {[%emt 0:00:01]} a5 {[%emt 0:00:05]} 16. Qd4 {[%emt 0:00:04]} Ra6 {[%emt 0:00:03]} 17. Qxd6 {[%emt 0:00:03]} Rxd6 {[%emt 0:00:01]} 18. Nc3 {[%emt 0:00:03]} b5 {[%emt 0:00:03]} 19. Nxb5 {[%emt 0:00:03]} Rb6 {[%emt 0:00:02]} 20. Na7 {[%emt 0:00:03]} Rxb2 {[%emt 0:00:01]} 21. Nxc8 {[%emt 0:00:02]} Rxc8 {[%emt 0:00:01]} 22. Nd4 {[%emt 0:00:02]} e5 {[%emt 0:00:02]} 23. Nc6 {[%emt 0:00:02]} f6 {[%emt 0:00:02]} 24. Ne7+ {[%emt 0:00:01]} Kf8 {[%emt 0:00:01]} 25. Nxc8 {[%emt 0:00:01]} fxg5 {[%emt 0:00:01]} 26. Rc1 {[%emt 0:00:01]} Na4 {[%emt 0:00:01]} 27. Bd5 {[%emt 0:00:01]} Rxe2 {[%emt 0:00:01]} 28. Nd6 {[%emt 0:00:01]} g4 {[%emt 0:00:01]} 29. Rc7 {[%emt 0:00:01]} Rd2 {[%emt 0:00:01]} 30. Bb3 {[%emt 0:00:02]} Rxd6 {[%emt 0:00:01]} 31. Bxa4 {[%emt 0:00:01]} Rd2 {[%emt 0:00:01]} 32. Rc2 {[%emt 0:00:01]} Rd4 {[%emt 0:00:01]} 33. Bb5 {[%emt 0:00:01]} Rd1+ {[%emt 0:00:01]} 34. Kg2 {[%emt 0:00:00]} g5 {[%emt 0:00:01]} 35. f3 {[%emt 0:00:01]} Ra1 {[%emt 0:00:01]} 36. h3 {[%emt 0:00:01]} Rb1 {[%emt 0:00:01]} 37. Bd3 {[%emt 0:00:01]} Ra1 {[%emt 0:00:01]} 38. Bxh7 {[%emt 0:00:01]} Kf7 {[%emt 0:00:01]} 39. h4 {[%emt 0:00:01] .} Kg7 {[%emt 0:00:01]} 0-1

[Event "Test Tournament"]
[Site "Emanuel Lasker Arena"]
[Date "2024.04.09"]
[Round "2"]
[White "Stachelrochade"]
[Black "Schachmatz"]
[Result "1/2-1/2"]
[WhiteElo "1620"]
[BlackElo "1620"]
[Annotator "NA RC"]
[PlyCount "106"]
[EventDate "2024.04.09"]
[EventType "swiss (blitz)"]
[TimeControl "60"]

1. d4 {[%emt 0:00:01]} d5 {[%emt 0:00:01]} 2. c4 {[%emt 0:00:01]} e5 {[%emt 0:00:01]} 3. dxe5 {[%emt 0:00:01]} Ne7 {[%emt 0:00:01]} 4. cxd5 {[%emt 0:00:01]} Qxd5 {[%emt 0:00:01]} 5. Qxd5 {[%emt 0:00:01]} Nxd5 {[%emt 0:00:01]} 6. Nc3 {[%emt 0:00:01]} Be6 {[%emt 0:00:01]} 7. Nb5 {[%emt 0:00:01]} Bb4+ {[%emt 0:00:02]} 8. Bd2 {[%emt 0:00:01]} c6 {[%emt 0:00:02]} 9. Bxb4 {[%emt 0:00:04]} cxb5 {[%emt 0:00:01]} 10. Bd6 {[%emt 0:00:04]} h5 {[%emt 0:00:04]} 11. Nf3 {[%emt 0:00:04]} h4 {[%emt 0:00:04]} 12. e3 {[%emt 0:00:04]} Nc6 {[%emt 0:00:04]} 13. Bxb5 {[%emt 0:00:01]} O-O-O {[%emt 0:00:03]} 14. Ng5 {[%emt 0:00:03]} Ndb4 {[%emt 0:00:03]} 15. O-O {[%emt 0:00:01]} a5 {[%emt 0:00:03]} 16. a3 {[%emt 0:00:03]} Nc2 {[%emt 0:00:03]} 17. Nxe6 {[%emt 0:00:03]} fxe6 {[%emt 0:00:01]} 18. Rac1 {[%emt 0:00:02]} h3 {[%emt 0:00:02]} 19. Rxc2 {[%emt 0:00:01]} hxg2 {[%emt 0:00:01]} 20. Kxg2 {[%emt 0:00:01]} Rh5 {[%emt 0:00:02]} 21. Bxc6 {[%emt 0:00:02]} bxc6 {[%emt 0:00:01]} 22. Be7 {[%emt 0:00:02]} Rh6 {[%emt 0:00:02]} 23. Bxd8 {[%emt 0:00:01]} Kxd8 {[%emt 0:00:01]} 24. Rxc6 {[%emt 0:00:01]} Kd7 {[%emt 0:00:01]} 25. Rfc1 {[%emt 0:00:01]} Rh4 {[%emt 0:00:01]} 26. Rc8 {[%emt 0:00:01]} Rg4+ {[%emt 0:00:01]} 27. Kf1 {[%emt 0:00:01]} Rb4 {[%emt 0:00:01]} 28. R1c6 {[%emt 0:00:01]} Rb7 {[%emt 0:00:01]} 29. Ke2 {[%emt 0:00:01]} Rxb2+ {[%emt 0:00:01]} 30. Rc2 {[%emt 0:00:01]} g5 {[%emt 0:00:01]} 31. R8c7+ {[%emt 0:00:01]} Kd8 {[%emt 0:00:01]} 32. Rxb2 {[%emt 0:00:00]} Kxc7 {[%emt 0:00:00]} 33. a4 {[%emt 0:00:01]} Kd7 {[%emt 0:00:01]} 34. Kd3 {[%emt 0:00:01]} Kc6 {[%emt 0:00:01]} 35. f4 {[%emt 0:00:01]} Kd5 {[%emt 0:00:01]} 36. Rb5+ {[%emt 0:00:01]} Kc6 {[%emt 0:00:00]} 37. fxg5 {[%emt 0:00:00]} Kc7 {[%emt 0:00:01]} 38. Rxa5 {[%emt 0:00:01]} Kb6 {[%emt 0:00:01]} 39. g6 {[%emt 0:00:01]} Kxa5 {[%emt 0:00:00]} 40. g7 {[%emt 0:00:00]} Kxa4 {[%emt 0:00:01]} 41. g8=B {[%emt 0:00:00]} Kb4 {[%emt 0:00:00]} 42. Bxe6 {[%emt 0:00:00]} Kc5 {[%emt 0:00:00]} 43. h4 {[%emt 0:00:01]} Kb4 {[%emt 0:00:00]} 44. h5 {[%emt 0:00:00]} Kc5 {[%emt 0:00:00]} 45. h6 {[%emt 0:00:00]} Kc6 {[%emt 0:00:00]} 46. h7 {[%emt 0:00:01]} Kc7 {[%emt 0:00:00]} 47. h8=N {[%emt 0:00:00]} Kc6 {[%emt 0:00:00]} 48. Ke4 {[%emt 0:00:00]} Kc5 {[%emt 0:00:00]} 49. Kf5 {[%emt 0:00:01]} Kc6 {[%emt 0:00:00]} 50. Ng6 {[%emt 0:00:00]} Kc5 {[%emt 0:00:00]} 51. Kf6 {[%emt 0:00:00]} Kc6 {[%emt 0:00:01]} 52. Ba2 {[%emt 0:00:00]} Kd7 {[%emt 0:00:00]} 53. e6+ {[%emt 0:00:00] .} Kd6 {[%emt 0:00:00]} 1/2-1/2

[Event "Test Tournament"]
[Site "Emanuel Lasker Arena"]
[Date "2024.04.09"]
[Round "2"]
[White "Triskaidekaphobe"]
[Black "Kalinda"]
[Result "1-0"]
[WhiteElo "1620"]
[BlackElo "2102"]
[Annotator "RC"]
[PlyCount "39"]
[EventDate "2024.04.09"]
[EventType "swiss (blitz)"]
[TimeControl "60"]

1. c4 {[%emt 0:00:01]} c5 {[%emt 0:00:01]} 2. Nf3 {[%emt 0:00:01]} Nc6 {[%emt 0:00:02]} 3. Nc3 {[%emt 0:00:01]} g6 {[%emt 0:00:02]} 4. e3 {[%emt 0:00:01]} Nf6 {[%emt 0:00:01]} 5. d4 {[%emt 0:00:01]} cxd4 {[%emt 0:00:01]} 6. exd4 {[%emt 0:00:01]} d5 {[%emt 0:00:01]} 7. cxd5 {[%emt 0:00:01]} Nxd5 {[%emt 0:00:02]} 8. Qb3 {[%emt 0:00:01]} e6 {[%emt 0:00:01]} 9. Bg5 {[%emt 0:00:01]} Qb6 {[%emt 0:00:02]} 10. Bb5 {[%emt 0:00:08]} Bg7 {[%emt 0:00:04]} 11. Na4 {[%emt 0:00:01]} Qa5+ {[%emt 0:00:04]} 12. Bd2 {[%emt 0:00:03]} Qc7 {[%emt 0:00:04]} 13. Rc1 {[%emt 0:00:03]} Bd7 {[%emt 0:00:08]} 14. Nc5 {[%emt 0:00:03]} O-O {[%emt 0:00:02]} 15. Nxd7 {[%emt 0:00:01]} Qxd7 {[%emt 0:00:01]} 16. O-O {[%emt 0:00:03]} Rac8 {[%emt 0:00:02]} 17. Ne5 {[%emt 0:00:02]} Qe7 {[%emt 0:00:02]} 18. Bxc6 {[%emt 0:00:01]} bxc6 {[%emt 0:00:01]} 19. Nxc6 {[%emt 0:00:01]} Qh4 {[%emt 0:00:02]} 20. g3 {[%emt 0:00:02] Time ' (Lag: Av=0.05s, max=0.1s)} 1-0